[Event "European-ch Seniors 2018"]
[Site "Drammen"]
[Date "2018.08.12"]
[Round "9"]
[White "Johnsen, Sylvia"]
[Black "Wagner-Michel, Annett"]
[Result "1/2-1/2"]
[ECO "B30"]
[WhiteElo "1977"]
[BlackElo "2120"]
[Annotator "NA"]
[PlyCount "149"]
[EventDate "2018.08.04"]
[EventType "swiss"]
[EventCountry "NOR"]
[SourceTitle "playchess.com"]
[Source "ChessBase"]
[SourceQuality "1"]
[TimeControl "40/5400+30:1800+30"]

1. e4 {[%emt 0:00:00]} c5 {[%emt 0:00:00]} 2. Nf3 {[%emt 0:00:00]} Nc6 {[%emt 0:00:00]} 3. c3 {[%emt 0:00:00]} d5 {[%emt 0:00:00]} 4. exd5 {[%emt 0:00:00]} Qxd5 {[%emt 0:00:03]} 5. d4 {[%emt 0:00:00]} e6 {[%emt 0:00:37]} 6. Be3 {[%emt 0:00:12]} cxd4 {[%emt 0:00:23]} 7. cxd4 {[%emt 0:00:35]} Nf6 {[%emt 0:00:52]} 8. Nc3 {[%emt 0:00:12]} Qd8 {[%emt 0:00:07]} 9. Bd3 {[%emt 0:00:52]} Be7 {[%emt 0:01:23]} 10. O-O {[%emt 0:00:10]} O-O {[%emt 0:00:08] B22: Sizilianisch (Alapin 2.c3)} 11. Ne5 {[%emt 0:03:56]} (11. Rc1 Nb4 12. Bb1 b6 13. Bg5 Bb7 14. Ne5 Rc8 15. Re1 Nfd5 16. Qh5 f5 17. Bd2 Nc6 18. Nxc6 Rxc6 19. a3 Nxc3 20. Bxc3 {0-1 (58) Nabaty,T (2579)-Nakamura,H (2776) Caleta 2015}) 11... Nb4 {[%emt 0:08:31]} 12. Bb1 {[%emt 0:01:03]} Bd7 {[%emt 0:06:51]} 13. a3 {[%emt 0:00:27]} Nbd5 {[%emt 0:00:09]} 14. Qd3 {[%emt 0:04:51]} g6 $146 {[%emt 0:03:35]} ({Vorgänger:} 14... Bc6 15. Bg5 g6 16. Nxc6 bxc6 17. Rd1 Qb8 18. Ba2 {0-1 (41) Ridameya Tatche,J (2169)-Gonzalez Vidal,Y (2487) Barbera del Valles 2004}) 15. Bh6 {[%emt 0:02:59]} Re8 {[%emt 0:00:01]} 16. Ba2 {[%emt 0:00:08]} Bc6 {[%emt 0:03:51]} 17. Rfe1 {[%emt 0:07:12]} Rc8 {[%emt 0:07:29]} 18. Nxc6 {[%emt 0:17:51]} Rxc6 {[%emt 0:01:07]} 19. Nxd5 {[%emt 0:04:11]} Nxd5 {[%emt 0:00:42]} 20. Be3 {[%emt 0:08:01]} Qd6 {[%emt 0:07:38]} 21. Rad1 {[%emt 0:02:26]} Rd8 {[%emt 0:03:05]} 22. Qe2 {[%emt 0:12:39]} Bf6 {[%emt 0:10:15]} 23. Bb3 {[%emt 0:02:46]} a6 {[%emt 0:11:56]} 24. Qf3 {[%emt 0:01:47]} Bg7 {[%emt 0:00:39]} 25. h3 {[%emt 0:01:13]} b5 {[%emt 0:12:01]} 26. Bg5 {[%emt 0:02:26]} Rd7 {[%emt 0:03:29]} 27. Rd3 {[%emt 0:01:46]} h6 {[%emt 0:01:19]} 28. Bd2 {[%emt 0:01:29]} Qc7 {[%emt 0:00:36]} 29. g4 {[%emt 0:03:17]} Qd8 {[%emt 0:01:39]} 30. Bc3 {[%emt 0:03:25]} Rcd6 {[%emt 0:01:13]} 31. Red1 {[%emt 0:03:02]} Qf6 {[%emt 0:02:05]} 32. Qe4 {[%emt 0:01:48]} Qh4 {[%emt 0:01:51]} 33. f4 {[%emt 0:06:22]} f5 {[%emt 0:01:23]} 34. Qf3 {[%emt 0:01:10]} fxg4 {[%emt 0:02:59]} 35. hxg4 {[%emt 0:00:25]} h5 {[%emt 0:00:19]} 36. gxh5 {[%emt 0:03:03]} Nxf4 {[%emt 0:01:03]} 37. R3d2 {[%emt 0:01:49]} Nh3+ {[%emt 0:00:10]} 38. Kg2 {[%emt 0:00:32]} Nf4+ {[%emt 0:00:21]} 39. Kg1 {[%emt 0:00:14]} Qg5+ {[%emt 0:01:02]} 40. Kh1 {[%emt 0:00:00]} Qxh5+ {[%emt 0:00:00]} 41. Qxh5 {[%emt 0:00:28]} Nxh5 {[%emt 0:02:44]} 42. Kg2 {[%emt 0:00:55]} Nf4+ {[%emt 0:00:34]} 43. Kf3 {[%emt 0:03:01]} Rf7 {[%emt 0:04:41]} 44. Ba5 {[%emt 0:08:30]} Nd5+ {[%emt 0:01:41]} 45. Ke2 {[%emt 0:01:02]} Bh6 {[%emt 0:00:32]} 46. Rc2 {[%emt 0:00:28]} Kg7 {[%emt 0:02:06]} 47. Rc8 {[%emt 0:00:07]} Nf4+ {[%emt 0:01:59]} 48. Kf3 {[%emt 0:00:24]} Nd3+ {[%emt 0:01:26]} 49. Ke2 {[%emt 0:01:05]} Nxb2 {[%emt 0:01:29]} 50. Bc7 {[%emt 0:01:40]} Bf4 {[%emt 0:14:24]} 51. Bxd6 {[%emt 0:01:21]} Nxd1 {[%emt 0:00:04]} 52. Bxe6 {[%emt 0:02:57]} Bxd6 {[%emt 0:02:56]} 53. Bxf7 {[%emt 0:00:21]} Kxf7 {[%emt 0:00:08]} 54. Kxd1 {[%emt 0:00:17]} Bxa3 {[%emt 0:00:04]} 55. Ra8 {[%emt 0:00:14]} Bb2 {[%emt 0:02:28]} 56. d5 {[%emt 0:00:40]} Be5 {[%emt 0:01:20]} 57. Rxa6 {[%emt 0:00:20]} b4 {[%emt 0:01:35]} 58. Rb6 {[%emt 0:00:23]} Bc3 {[%emt 0:00:02]} 59. Ke2 {[%emt 0:00:26]} g5 {[%emt 0:00:05]} 60. Kd3 {[%emt 0:02:06]} g4 {[%emt 0:00:12]} 61. Re6 {[%emt 0:00:21]} g3 {[%emt 0:00:11]} 62. Re2 {[%emt 0:00:08]} Bf6 {[%emt 0:00:32]} 63. Kc4 {[%emt 0:00:14]} Be7 {[%emt 0:00:08]} 64. Kb5 {[%emt 0:01:03]} b3 {[%emt 0:01:20]} 65. Kc4 {[%emt 0:00:16]} Kf6 {[%emt 0:04:39]} 66. Kxb3 {[%emt 0:01:29]} Bf8 {[%emt 0:01:13]} 67. Kc4 {[%emt 0:00:40]} Kf5 {[%emt 0:00:05]} 68. Re8 {[%emt 0:07:03]} Bd6 $11 {[%emt 0:00:37]} 69. Kb5 {[%emt 0:01:55]} Kf4 {[%emt 0:01:01]} 70. Kc6 {[%emt 0:01:09]} Be5 {[%emt 0:00:48]} 71. Rf8+ {[%emt 0:02:22]} Ke3 {[%emt 0:00:16]} 72. d6 {[%emt 0:01:45]} Bxd6 {[%emt 0:00:06]} 73. Kxd6 {[%emt 0:00:04]} g2 {[%emt 0:00:06]} 74. Rg8 {[%emt 0:00:06]} Kf2 {[%emt 0:00:02]} 75. Rxg2+ {[%emt 0:00:09]} 1/2-1/2